fUST/lending_fUST_20250607
["ID","MTS","AMOUNT","RATE_DAILY","PERIOD"]
[364779171,1749239444516,-440.0,0.00021095,2]
[364779172,1749239444525,-440.0,0.00021095,2]
[364779173,1749239444535,-4099.41,0.00021095,2]
[364779174,1749239444545,-1995.24,0.00021095,2]
[364779175,1749239444555,-884.52,0.00021095,2]
[364779176,1749239444565,-712.73,0.00021095,2]
[364779177,1749239444574,-2530.66,0.00021095,2]
[364779179,1749239444583,-440.0,0.00021095,2]
[364779181,1749239444592,-440.0,0.00021095,2]
[364779182,1749239444602,-440.0,0.00021095,2]
[364779183,1749239444612,-440.0,0.00021095,2]
[364779184,1749239444622,-1295.65,0.00021095,2]
[364779185,1749239444631,-440.0,0.00021095,2]
[364779186,1749239444641,-1007.76,0.00021095,2]
[364779187,1749239444650,-1150.94,0.00021095,2]
[364779188,1749239444659,-440.0,0.00021095,2]
[364779189,1749239444669,-440.0,0.00021095,2]
[364779190,1749239444678,-440.0,0.00021095,2]
[364779191,1749239444687,-662.4,0.00021095,2]
[364779192,1749239444697,-1190.15,0.00021095,2]
[364779193,1749239444706,-959.16,0.00021095,2]
[364779194,1749239444716,-440.0,0.00021095,2]
[364779195,1749239444726,-440.0,0.00021095,2]
[364779196,1749239444735,-440.0,0.00021095,2]
[364779197,1749239444745,-440.0,0.00021095,2]
[364779198,1749239444754,-440.0,0.00021095,2]
[364779199,1749239444763,-2892.11,0.00021095,2]
[364779200,1749239444772,-440.0,0.00021095,2]
[364779201,1749239444782,-440.0,0.00021095,2]
[364779202,1749239444791,-440.0,0.00021095,2]
[364779203,1749239444801,-1124.66,0.00021095,2]
[364779204,1749239444810,-450.41,0.00021095,2]
[364779205,1749239444820,-217.82904102,0.00021095,2]
[364779206,1749239444830,-2178.32,0.00021095,2]
[364779207,1749239444839,-440.0,0.00021095,2]
[364779208,1749239444848,-878.49,0.00021095,2]
[364779209,1749239444858,-555.94198922,0.00021095,2]
[364779210,1749239444867,-440.0,0.00021095,2]
[364779211,1749239444877,-4989.3,0.00021095,2]
[364779212,1749239444886,-440.0,0.00021095,2]
[364779213,1749239444898,-664.7,0.00021095,2]
[364779214,1749239444914,-1873.87,0.00021095,2]
[364779215,1749239444924,-553.06,0.00021095,2]
[364779216,1749239444933,-957.81,0.00021095,2]
[364779217,1749239444942,-500.0,0.00021095,3]
[364779218,1749239444953,-1334.64,0.00021095,2]
[364779219,1749239444962,-3318.27446779,0.00021176,4]
[364779220,1749239444972,-5000.0,0.00021248,2]
[364779221,1749239444981,-3318.27446779,0.00021314,5]
[364779222,1749239444991,-200.0,0.00021368,2]
[364779223,1749239445001,-151.0,0.00021369,2]
[364779224,1749239445011,-440.0,0.00021369,2]
[364779225,1749239445020,-440.0,0.00021369,2]
[364779226,1749239445031,-440.0,0.00021369,2]
[364779227,1749239445040,-440.0,0.00021369,2]
[364779228,1749239445049,-151.0,0.00021369,2]
[364779229,1749239445059,-151.0,0.00021369,2]
[364779230,1749239445068,-151.0,0.00021369,2]
[364779231,1749239445078,-440.0,0.00021369,2]
[364779232,1749239445087,-440.0,0.00021369,2]
[364779233,1749239445097,-468.46,0.00021369,2]
[364779234,1749239445106,-440.0,0.00021369,2]
[364779235,1749239445116,-440.0,0.00021369,2]
[364779236,1749239445126,-4099.41,0.00021369,2]
[364779237,1749239445136,-884.52,0.00021369,2]
[364779238,1749239445145,-1995.24,0.00021369,2]
[364779239,1749239445155,-712.73,0.00021369,2]
[364779240,1749239445163,-2530.66,0.00021369,2]
[364779241,1749239445172,-440.0,0.00021369,2]
[364779242,1749239445183,-440.0,0.00021369,2]
[364779243,1749239445192,-440.0,0.00021369,2]
[364779245,1749239445202,-159.061941,0.00021369,2]
[364779246,1749239445212,-1295.65,0.00021369,2]
[364779247,1749239445221,-159.061941,0.00021369,2]
[364779248,1749239445230,-440.0,0.00021369,2]
[364779249,1749239445239,-1007.76,0.00021369,2]
[364779251,1749239445249,-1150.94,0.00021369,2]
[364779252,1749239445258,-440.0,0.00021369,2]
[364779253,1749239445267,-440.0,0.00021369,2]
[364779254,1749239445276,-440.0,0.00021369,2]
[364779255,1749239445285,-662.4,0.00021369,2]
[364779256,1749239445297,-1190.15,0.00021369,2]
[364779257,1749239445307,-959.16,0.00021369,2]
[364779258,1749239445317,-440.0,0.00021369,2]
[364779259,1749239445326,-440.0,0.00021369,2]
[364779260,1749239445335,-561.6395711,0.00021369,2]
[364779261,1749239445344,-440.0,0.00021369,2]
[364779262,1749239445354,-440.0,0.00021369,2]
[364779263,1749239445363,-2892.11,0.00021369,2]
[364779264,1749239445372,-440.0,0.00021369,2]
[364779265,1749239445381,-440.0,0.00021369,2]
[364779266,1749239445391,-440.0,0.00021369,2]
[364779267,1749239445400,-1124.66,0.00021369,2]
[364779268,1749239445409,-450.41,0.00021369,2]
[364779269,1749239445419,-440.0,0.00021369,2]
[364779270,1749239445428,-2178.32,0.00021369,2]
[364779271,1749239445438,-878.49,0.00021369,2]
[364779272,1749239445447,-440.0,0.00021369,2]
[364779273,1749239445457,-4989.3,0.00021369,2]
[364779274,1749239445467,-440.0,0.00021369,2]
[364779275,1749239445476,-664.7,0.00021369,2]
[364779276,1749239445485,-1873.87,0.00021369,2]
[364779277,1749239445495,-553.06,0.00021369,2]
[364779278,1749239445504,-957.81,0.00021369,2]
[364779279,1749239445514,-1334.64,0.00021369,2]
[364779280,1749239445524,-237.19011294,0.00021383,2]
[364779281,1749239445533,-3318.27446779,0.00021452,5]
[364779282,1749239445543,-500.0,0.000215,2]
[364779283,1749239445552,-1000.0,0.00021515,5]
[364779284,1749239445563,-500.0,0.00021571,2]
[364779285,1749239445572,-3318.27446779,0.0002159,5]
[364779286,1749239445582,-223.75967,0.00021642,2]
[364779287,1749239445591,-440.0,0.00021643,2]
[364779288,1749239445601,-440.0,0.00021643,2]
[364779289,1749239445611,-440.0,0.00021643,2]
[364779290,1749239445620,-440.0,0.00021643,2]
[364779292,1749239445629,-440.0,0.00021643,2]
[364779294,1749239445639,-440.0,0.00021643,2]
[364779296,1749239445648,-468.46,0.00021643,2]
[364779298,1749239445658,-440.0,0.00021643,2]
[364779300,1749239445667,-440.0,0.00021643,2]
[364779302,1749239445677,-4099.41,0.00021643,2]
[364779304,1749239445687,-884.52,0.00021643,2]
[364779306,1749239445696,-1995.24,0.00021643,2]
[364779308,1749239445706,-712.73,0.00021643,2]
[364779310,1749239445719,-2530.66,0.00021643,2]
[364779312,1749239445728,-440.0,0.00021643,2]
[364779314,1749239445737,-440.0,0.00021643,2]
[364779316,1749239445747,-440.0,0.00021643,2]
[364779318,1749239445756,-1295.65,0.00021643,2]
[364779320,1749239445766,-440.0,0.00021643,2]
[364779322,1749239445775,-1007.76,0.00021643,2]
[364779324,1749239445784,-1150.94,0.00021643,2]
[364779326,1749239445793,-440.0,0.00021643,2]
[364779328,1749239445803,-440.0,0.00021643,2]
[364779330,1749239445812,-440.0,0.00021643,2]
[364779332,1749239445821,-662.4,0.00021643,2]
[364779334,1749239445830,-1190.15,0.00021643,2]
[364779336,1749239445839,-959.16,0.00021643,2]
[364779338,1749239445849,-440.0,0.00021643,2]
[364779340,1749239445858,-440.0,0.00021643,2]
[364779342,1749239445867,-440.0,0.00021643,2]
[364779344,1749239445876,-440.0,0.00021643,2]
[364779346,1749239445886,-2892.11,0.00021643,2]
[364779348,1749239445895,-440.0,0.00021643,2]
[364779350,1749239445905,-440.0,0.00021643,2]
[364779352,1749239445918,-440.0,0.00021643,2]
[364779354,1749239445927,-1124.66,0.00021643,2]
[364779355,1749239445937,-450.41,0.00021643,2]
[364779358,1749239445947,-440.0,0.00021643,2]
[364779360,1749239445958,-2178.32,0.00021643,2]
[364779361,1749239445967,-878.49,0.00021643,2]
[364779363,1749239445976,-440.0,0.00021643,2]
[364779365,1749239445986,-4989.3,0.00021643,2]
[364779368,1749239445995,-440.0,0.00021643,2]
[364779370,1749239446005,-664.7,0.00021643,2]
[364779372,1749239446014,-1873.87,0.00021643,2]
[364779374,1749239446023,-553.06,0.00021643,2]
[364779376,1749239446033,-957.81,0.00021643,2]
[364779378,1749239446042,-500.0,0.00021643,4]
[364779380,1749239446051,-1334.64,0.00021643,2]
[364779382,1749239446061,-3318.27446779,0.00021728,5]
[364779385,1749239446071,-150.0,0.00021742,2]
[364779387,1749239446080,-5000.0,0.00021796,2]
[364779389,1749239446090,-1050.19,0.000218,2]
[364779391,1749239446099,-1161.18670485,0.00021817,2]
[364779392,1749239446109,-1600.0,0.00021858,2]
[364779394,1749239446119,-3318.27446779,0.00021866,6]
[364779396,1749239446128,-440.0,0.00021917,2]
[364779398,1749239446138,-440.0,0.00021917,2]
[364779400,1749239446147,-440.0,0.00021917,2]
[364779403,1749239446157,-440.0,0.00021917,2]
[364779405,1749239446166,-151.0,0.00021917,2]
[364779407,1749239446176,-229.364616,0.00021917,2]
[364779408,1749239446185,-581.8,0.00021917,2]
[364779410,1749239446194,-332.64,0.00021917,2]
[364779422,1749239446298,-468.46,0.00021917,2]
[364779424,1749239446309,-440.0,0.00021917,2]
[364779426,1749239446319,-400.0,0.00021917,2]
[364779428,1749239446328,-400.0,0.00021917,2]
[364779430,1749239446338,-212.07185193,0.00021917,2]
[364779432,1749239446347,-400.0,0.00021917,2]
[364779434,1749239446357,-174.73,0.00021917,2]
[364779436,1749239446367,-4099.41,0.00021917,2]
[364779438,1749239446376,-884.52,0.00021917,2]
[364779440,1749239446385,-1995.24,0.00021917,2]
[364779442,1749239446395,-712.73,0.00021917,2]
[364779444,1749239446404,-2530.66,0.00021917,2]
[364779446,1749239446413,-440.0,0.00021917,2]
[364779448,1749239446423,-440.0,0.00021917,2]
[364779450,1749239446433,-440.0,0.00021917,2]
[364779452,1749239446443,-159.061941,0.00021917,2]
[364779454,1749239446453,-1295.65,0.00021917,2]
[364779456,1749239446463,-159.061941,0.00021917,2]
[364779459,1749239446473,-440.0,0.00021917,2]
[364779461,1749239446482,-1007.76,0.00021917,2]
[364779462,1749239446492,-1150.94,0.00021917,2]
[364779464,1749239446503,-440.0,0.00021917,2]
[364779467,1749239446513,-440.0,0.00021917,2]
[364779469,1749239446524,-237.11625404,0.00021917,2]
[364779471,1749239446533,-662.4,0.00021917,2]
[364779472,1749239446543,-1190.15,0.00021917,2]
[364779473,1749239446553,-959.16,0.00021917,2]
[364779474,1749239446565,-440.0,0.00021917,2]
[364779475,1749239446574,-440.0,0.00021917,2]
[364779476,1749239446585,-440.0,0.00021917,2]
[364779477,1749239446595,-440.0,0.00021917,2]
[364779478,1749239446604,-500.0,0.00021917,2]
[364779479,1749239446615,-2892.11,0.00021917,2]
[364779480,1749239446625,-440.0,0.00021917,2]
[364779481,1749239446635,-440.0,0.00021917,2]
[364779482,1749239446645,-440.0,0.00021917,2]
[364779483,1749239446655,-1124.66,0.00021917,2]
[364779484,1749239446664,-450.41,0.00021917,2]
[364779485,1749239446675,-440.0,0.00021917,2]
[364779486,1749239446685,-2178.32,0.00021917,2]
[364779487,1749239446696,-878.49,0.00021917,2]
[364779488,1749239446707,-440.0,0.00021917,2]
[364779489,1749239446717,-4989.3,0.00021917,2]
[364779490,1749239446727,-440.0,0.00021917,2]
[364779491,1749239446737,-664.7,0.00021917,2]
[364779492,1749239446746,-1873.87,0.00021917,2]
[364779493,1749239446755,-553.06,0.00021917,2]
[364779494,1749239446765,-957.81,0.00021917,2]
[364779495,1749239446775,-1334.64,0.00021917,2]
[364779496,1749239446784,-151.0,0.00021957,7]
[364779497,1749239446794,-297.406986,0.00021957,7]
[364779498,1749239446804,-160.24510217,0.00021999,2]
[364779499,1749239446815,-615.33,0.00022,7]
[364779500,1749239446825,-2000.0,0.00022,7]
[364779501,1749239446836,-151.0,0.00022,7]
[364779502,1749239446848,-151.0,0.00022,7]
[364779503,1749239446858,-11849.89752062,0.00022,7]
[364779504,1749239446868,-111169.05,0.00022,7]
[364779505,1749239446878,-36787.96,0.00022,2]
[364779506,1749239446889,-159.061941,0.00022,7]
[364779507,1749239446899,-159.061941,0.00022,7]
[364779508,1749239446911,-212.976918,0.00022,7]
[364779509,1749239446925,-3318.27446779,0.00022003,6]
[364779510,1749239446937,-501.30822483,0.00022048,2]
[364779511,1749239446952,-215.0738,0.00022069,2]
[364779512,1749239446972,-974.114,0.0002211,2]
[364779513,1749239446982,-709.0,0.0002211,2]
[364779514,1749239446993,-2229.0,0.0002211,2]
[364779515,1749239447003,-405.0,0.0002211,2]
[364779516,1749239447012,-247.364,0.0002211,2]
[364779517,1749239447022,-250.0,0.0002211,2]
[364779518,1749239447031,-235.529,0.0002211,2]
[364779519,1749239447041,-152.115,0.0002211,2]
[364779520,1749239447051,-1000.0,0.00022119,2]
[364779521,1749239447060,-3318.27446779,0.00022141,6]
[364779522,1749239447069,-152.64334674,0.00022146,2]
[364779523,1749239447079,-500.0,0.00022146,2]
[364779524,1749239447089,-237.19011294,0.00022151,2]
[364779525,1749239447099,-151.0,0.00022191,7]
[364779526,1749239447110,-440.0,0.00022191,2]
[364779527,1749239447120,-440.0,0.00022191,2]
[364779528,1749239447130,-440.0,0.00022191,2]
[364779529,1749239447139,-487.32,0.00022191,2]
[364779530,1749239447149,-468.46,0.00022191,2]
[364779531,1749239447160,-440.0,0.00022191,2]
[364779532,1749239447170,-4099.41,0.00022191,2]
[364779533,1749239447179,-884.52,0.00022191,2]
[364779534,1749239447189,-1995.24,0.00022191,2]
[364779535,1749239447199,-712.73,0.00022191,2]
[364779536,1749239447213,-440.0,0.00022191,2]
[364779537,1749239447223,-2530.66,0.00022191,2]
[364779538,1749239447232,-440.0,0.00022191,2]
[364779539,1749239447241,-440.0,0.00022191,2]
[364779540,1749239447251,-1295.65,0.00022191,2]
[364779541,1749239447260,-440.0,0.00022191,2]
[364779542,1749239447270,-1007.76,0.00022191,2]
[364779543,1749239447280,-1150.94,0.00022191,2]
[364779544,1749239447290,-440.0,0.00022191,2]
[364779545,1749239447300,-451.74,0.00022191,2]
[364779546,1749239447310,-662.4,0.00022191,2]
[364779547,1749239447321,-1190.15,0.00022191,2]
[364779548,1749239447332,-959.16,0.00022191,2]
[364779549,1749239447341,-440.0,0.00022191,2]
[364779550,1749239447350,-240.08810302,0.00022191,2]
[364779551,1749239447360,-440.0,0.00022191,2]
[364779552,1749239447369,-440.0,0.00022191,2]
[364779553,1749239447379,-2892.11,0.00022191,2]
[364779554,1749239447388,-440.0,0.00022191,2]
[364779555,1749239447397,-440.0,0.00022191,2]
[364779556,1749239447407,-440.0,0.00022191,2]
[364779557,1749239447416,-1124.66,0.00022191,2]
[364779558,1749239447425,-450.41,0.00022191,2]
[364779559,1749239447435,-2178.32,0.00022191,2]
[364779560,1749239447444,-878.49,0.00022191,2]
[364779561,1749239447456,-440.0,0.00022191,2]
[364779562,1749239447465,-440.0,0.00022191,2]
[364779563,1749239447475,-4989.3,0.00022191,2]
[364779564,1749239447486,-440.0,0.00022191,2]
[364779565,1749239447495,-664.7,0.00022191,2]
[364779566,1749239447505,-1873.87,0.00022191,2]
[364779567,1749239447514,-553.06,0.00022191,2]
[364779568,1749239447524,-957.81,0.00022191,2]
[364779569,1749239447535,-500.0,0.00022191,5]
[364779570,1749239447545,-1334.64,0.00022191,2]
[364779571,1749239447555,-540.70699912,0.000222,69]
[364779572,1749239447564,-540.70699909,0.000222,69]
[364779573,1749239447574,-540.70699909,0.000222,69]
[364779574,1749239447586,-160.0,0.00022225,2]
[364779575,1749239447595,-834.50537533,0.00022225,2]
[364779576,1749239447605,-3318.27446779,0.00022279,6]
[364779577,1749239447615,-1161.18670481,0.00022283,2]
[364779578,1749239447624,-500.0,0.0002231,2]
[364779579,1749239447633,-500.0,0.0002231,2]
[364779580,1749239447642,-415.78626779,0.0002231,2]
[364779581,1749239447652,-5000.0,0.00022344,2]
[364779582,1749239447661,-500.0,0.00022367,2]
[364779583,1749239447671,-500.0,0.00022367,2]
[364779584,1749239447681,-500.0,0.00022367,2]
[364779585,1749239447690,-3318.27446779,0.00022417,7]
[364779586,1749239447699,-166.0,0.00022458,3]
[364779587,1749239447710,-166.0,0.00022458,3]
[364779588,1749239447719,-166.0,0.00022458,3]
[364779589,1749239447729,-166.0,0.00022458,3]
[364779590,1749239447738,-166.0,0.00022458,3]
[364779591,1749239447747,-166.0,0.00022458,3]
[364779592,1749239447757,-158.47605649,0.00022458,3]
[364779593,1749239447769,-440.0,0.00022465,2]
[364779594,1749239447779,-440.0,0.00022465,2]
[364779595,1749239447788,-440.0,0.00022465,2]
[364779596,1749239447799,-468.46,0.00022465,2]
[364779597,1749239447808,-440.0,0.00022465,2]
[364779598,1749239447818,-4099.41,0.00022465,2]
[364779599,1749239447828,-884.52,0.00022465,2]
[364779600,1749239447838,-1995.24,0.00022465,2]
[364779601,1749239447848,-712.73,0.00022465,2]
[364779602,1749239447857,-440.0,0.00022465,2]
[364779603,1749239447866,-2530.66,0.00022465,2]
[364779604,1749239447876,-440.0,0.00022465,2]
[364779605,1749239447885,-440.0,0.00022465,2]
[364779606,1749239447895,-1295.65,0.00022465,2]
[364779607,1749239447904,-440.0,0.00022465,2]
[364779608,1749239447916,-1007.76,0.00022465,2]
[364779609,1749239447926,-1150.94,0.00022465,2]
[364779610,1749239447935,-440.0,0.00022465,2]
[364779611,1749239447944,-662.4,0.00022465,2]
[364779612,1749239447955,-1190.15,0.00022465,2]
[364779613,1749239447965,-959.16,0.00022465,2]
[364779614,1749239447974,-440.0,0.00022465,2]
[364779615,1749239447984,-440.0,0.00022465,2]
[364779616,1749239447993,-440.0,0.00022465,2]
[364779617,1749239448003,-500.0,0.00022465,2]
[364779618,1749239448012,-2892.11,0.00022465,2]
[364779619,1749239448022,-440.0,0.00022465,2]
[364779620,1749239448031,-440.0,0.00022465,2]
[364779621,1749239448040,-440.0,0.00022465,2]
[364779622,1749239448050,-1124.66,0.00022465,2]
[364779623,1749239448060,-450.41,0.00022465,2]
[364779624,1749239448070,-2178.32,0.00022465,2]
[364779625,1749239448080,-878.49,0.00022465,2]
[364779626,1749239448090,-440.0,0.00022465,2]
[364779627,1749239448100,-440.0,0.00022465,2]
[364779628,1749239448110,-4989.3,0.00022465,2]
[364779629,1749239448120,-440.0,0.00022465,2]
[364779630,1749239448130,-664.7,0.00022465,2]
[364779631,1749239448140,-1873.87,0.00022465,2]
[364779632,1749239448150,-553.06,0.00022465,2]
[364779633,1749239448160,-957.81,0.00022465,2]
[364779634,1749239448169,-1334.64,0.00022465,2]
[364779635,1749239448179,-3318.27446779,0.00022555,7]
[364779636,1749239448188,-600.0,0.00022667,2]
[364779637,1749239448197,-500.0,0.00022667,2]
[364779638,1749239448209,-500.0,0.00022667,2]
[364779639,1749239448218,-500.0,0.00022667,2]
[364779640,1749239448227,-500.0,0.00022667,2]
[364779641,1749239448237,-500.0,0.00022667,2]
[364779642,1749239448246,-500.0,0.00022667,2]
[364779643,1749239448256,-500.0,0.00022667,2]
[364779644,1749239448266,-500.0,0.00022667,2]
[364779645,1749239448275,-500.0,0.00022667,2]
[364779646,1749239448285,-500.0,0.00022667,2]
[364779647,1749239448295,-500.0,0.00022667,2]
[364779648,1749239448304,-500.0,0.00022667,2]
[364779649,1749239448314,-500.0,0.00022671,2]
[364779650,1749239448323,-500.0,0.00022671,2]
[364779651,1749239448333,-500.0,0.00022671,2]
[364779652,1749239448344,-500.0,0.00022671,2]
[364779653,1749239448353,-500.0,0.00022671,2]
[364779654,1749239448363,-500.0,0.00022671,2]
[364779655,1749239448372,-354.76498278,0.00022682,2]
[364779656,1749239448382,-500.0,0.00022682,2]
[364779657,1749239448391,-3318.27446779,0.00022693,7]
[364779658,1749239448401,-540.41710014,0.00022694,2]
[364779659,1749239448411,-151.0,0.000227,5]
[364779660,1749239448420,-548.06,0.00022739,2]
[364779661,1749239448430,-530.76,0.00022739,2]
[364779662,1749239448440,-440.0,0.00022739,2]
[364779663,1749239448449,-151.0,0.00022739,7]
[364779664,1749239448460,-468.46,0.00022739,2]
[364779665,1749239448470,-440.0,0.00022739,2]
[364779666,1749239448480,-4099.41,0.00022739,2]
[364779667,1749239448489,-884.52,0.00022739,2]
[364779668,1749239448499,-1995.24,0.00022739,2]
[364779669,1749239448509,-712.73,0.00022739,2]
[364779670,1749239448518,-440.0,0.00022739,2]
[364779671,1749239448527,-2530.66,0.00022739,2]
[364779672,1749239448537,-440.0,0.00022739,2]
[364779673,1749239448547,-440.0,0.00022739,2]
[364779674,1749239448557,-159.061941,0.00022739,7]
[364779675,1749239448567,-1295.65,0.00022739,2]
[364779676,1749239448577,-159.061941,0.00022739,7]
[364779677,1749239448586,-440.0,0.00022739,2]
[364779678,1749239448595,-1007.76,0.00022739,2]
[364779679,1749239448605,-1150.94,0.00022739,2]
[364779680,1749239448614,-440.0,0.00022739,2]
[364779681,1749239448624,-662.4,0.00022739,2]
[364779682,1749239448634,-1190.15,0.00022739,2]
[364779683,1749239448644,-959.16,0.00022739,2]
[364779684,1749239448653,-440.0,0.00022739,2]
[364779685,1749239448664,-440.0,0.00022739,2]
[364779686,1749239448674,-440.0,0.00022739,2]
[364779687,1749239448683,-2892.11,0.00022739,2]
[364779688,1749239448692,-440.0,0.00022739,2]
[364779689,1749239448702,-440.0,0.00022739,2]
[364779690,1749239448712,-440.0,0.00022739,2]
[364779691,1749239448815,-1124.66,0.00022739,2]
[364779692,1749239448827,-450.41,0.00022739,2]
[364779693,1749239448838,-2178.32,0.00022739,2]
[364779694,1749239448849,-878.49,0.00022739,2]
[364779695,1749239448860,-440.0,0.00022739,2]
[364779696,1749239448870,-440.0,0.00022739,2]
[364779697,1749239448880,-4989.3,0.00022739,2]
[364779698,1749239448890,-440.0,0.00022739,2]
[364779699,1749239448900,-664.7,0.00022739,2]
[364779700,1749239448911,-1873.87,0.00022739,2]
[364779701,1749239448921,-553.06,0.00022739,2]
[364779702,1749239448931,-957.81,0.00022739,2]
[364779703,1749239448940,-500.0,0.00022739,6]
[364779704,1749239448952,-1334.64,0.00022739,2]
[364779705,1749239448961,-1161.18670481,0.00022749,2]
[364779706,1749239448971,-587.0,0.00022776,2]
[364779707,1749239448981,-587.0,0.00022776,2]
[364779708,1749239448992,-3318.27446779,0.00022831,8]
[364779709,1749239449002,-753.873086,0.00022843,3]
[364779710,1749239449011,-5000.0,0.00022892,2]
[364779711,1749239449021,-151.0,0.000229,7]
[364779712,1749239449030,-1000.0,0.00022915,2]
[364779713,1749239449040,-500.40857291,0.00022915,2]
[364779714,1749239449049,-1000.0,0.00022915,2]
[364779715,1749239449058,-237.19011294,0.00022919,2]
[364779716,1749239449067,-800.0,0.00022947,2]
[364779717,1749239449076,-1600.0,0.00022954,2]
[364779718,1749239449086,-3318.27446779,0.00022969,8]
[364779719,1749239449096,-485.32,0.00023,2]
[364779720,1749239449106,-1050.19,0.00023,7]
[364779721,1749239449115,-111169.05,0.00023,7]
[364779722,1749239449124,-36787.96,0.00023,2]
[364779723,1749239449133,-440.0,0.00023013,2]
[364779724,1749239449143,-468.46,0.00023013,2]
[364779725,1749239449152,-440.0,0.00023013,2]
[364779726,1749239449162,-4099.41,0.00023013,2]
[364779727,1749239449171,-884.52,0.00023013,2]
[364779728,1749239449181,-1995.24,0.00023013,2]
[364779729,1749239449191,-712.73,0.00023013,2]
[364779730,1749239449201,-440.0,0.00023013,2]
[364779731,1749239449212,-2530.66,0.00023013,2]
[364779732,1749239449221,-440.0,0.00023013,2]
[364779733,1749239449230,-440.0,0.00023013,2]
[364779734,1749239449240,-1295.65,0.00023013,2]
[364779735,1749239449250,-440.0,0.00023013,2]
[364779736,1749239449259,-1007.76,0.00023013,2]
[364779737,1749239449269,-1150.94,0.00023013,2]
[364779738,1749239449278,-440.0,0.00023013,2]
[364779739,1749239449288,-662.4,0.00023013,2]
[364779740,1749239449297,-1190.15,0.00023013,2]
[364779741,1749239449308,-959.16,0.00023013,2]
[364779742,1749239449318,-440.0,0.00023013,2]
[364779743,1749239449327,-440.0,0.00023013,2]
[364779744,1749239449337,-440.0,0.00023013,2]
[364779745,1749239449347,-500.0,0.00023013,2]
[364779746,1749239449356,-2892.11,0.00023013,2]
[364779747,1749239449366,-440.0,0.00023013,2]
[364779748,1749239449375,-440.0,0.00023013,2]
[364779749,1749239449385,-440.0,0.00023013,2]
[364779750,1749239449396,-1124.66,0.00023013,2]
[364779751,1749239449406,-450.41,0.00023013,2]
[364779752,1749239449416,-2178.32,0.00023013,2]
[364779753,1749239449426,-878.49,0.00023013,2]
[364779754,1749239449435,-440.0,0.00023013,2]
[364779755,1749239449444,-440.0,0.00023013,2]
[364779756,1749239449455,-4989.3,0.00023013,2]
[364779757,1749239449464,-440.0,0.00023013,2]
[364779758,1749239449474,-664.7,0.00023013,2]
[364779759,1749239449483,-1873.87,0.00023013,2]
[364779760,1749239449493,-553.06,0.00023013,2]
[364779761,1749239449503,-957.81,0.00023013,2]
[364779762,1749239449512,-1334.64,0.00023013,2]
[364779763,1749239449521,-500.0,0.00023075,2]
[364779764,1749239449531,-259.506172,0.000231,7]
[364779765,1749239449541,-159.061941,0.000231,7]
[364779766,1749239449551,-159.061941,0.000231,7]
[364779767,1749239449560,-159.061941,0.000231,7]
[364779768,1749239449570,-159.061941,0.000231,7]
[364779769,1749239449580,-3318.27446779,0.00023107,8]
[364779770,1749239449589,-540.70699909,0.00023112,73]